[Event "*** Titled Tuesday Blitz"]
[Site "Chess.com"]
[Date "2020.11.24"]
[Round "3"]
[White "GMaka"]
[Black "keepitcool9499"]
[Result "0-1"]
[WhiteElo "2422"]
[BlackElo "2627"]
[TimeControl "180+1"]
[EndTime "10:45:18 PST"]
[Termination "keepitcool9499 won by resignation"]

1. d4 {[%clk 0:03:00.9]} 1... e6 {[%clk 0:03:00.9]} 2. c4 {[%clk 0:03:00.2]}
2... d5 {[%clk 0:03:01.1]} 3. Nc3 {[%clk 0:03:00.8]} 3... Nf6 {[%clk 0:03:01.4]}
4. cxd5 {[%clk 0:03:00.4]} 4... exd5 {[%clk 0:03:02.2]} 5. Bg5 {[%clk
0:03:00.5]} 5... Be7 {[%clk 0:03:03.1]} 6. e3 {[%clk 0:03:00.8]} 6... O-O {[%clk
0:03:03.6]} 7. Bd3 {[%clk 0:03:01.4]} 7... c6 {[%clk 0:03:04.1]} 8. Qc2 {[%clk
0:03:01.7]} 8... Nbd7 {[%clk 0:03:04.7]} 9. Nge2 {[%clk 0:03:01.6]} 9... Re8
{[%clk 0:03:05.3]} 10. f3 {[%clk 0:02:55.1]} 10... Nf8 {[%clk 0:03:02.4]} 11.
O-O {[%clk 0:02:47.6]} 11... Ng6 {[%clk 0:02:52.5]} 12. Rad1 {[%clk 0:02:43.8]}
12... Nh5 {[%clk 0:02:48.3]} 13. Bxe7 {[%clk 0:02:40.9]} 13... Qxe7 {[%clk
0:02:49.2]} 14. e4 {[%clk 0:02:39]} 14... Nhf4 {[%clk 0:01:58]} 15. e5 {[%clk
0:02:21]} 15... Qg5 {[%clk 0:01:42.1]} 16. Nxf4 {[%clk 0:02:15.6]} 16... Nxf4
{[%clk 0:01:43]} 17. g3 {[%clk 0:02:06.8]} 17... Bh3 {[%clk 0:01:36.1]} 18. Rf2
{[%clk 0:01:58.2]} 18... Bd7 {[%clk 0:01:32.3]} 19. Kh1 {[%clk 0:01:49.7]} 19...
Nxd3 {[%clk 0:01:26.4]} 20. Qxd3 {[%clk 0:01:50.6]} 20... f6 {[%clk 0:01:26.5]}
21. f4 {[%clk 0:01:50.1]} 21... Qh5 {[%clk 0:01:22.9]} 22. Re1 {[%clk
0:01:47.3]} 22... Bf5 {[%clk 0:01:20.7]} 23. Qe3 {[%clk 0:01:42.5]} 23... fxe5
{[%clk 0:01:20]} 24. fxe5 {[%clk 0:01:37.5]} 24... Rf8 {[%clk 0:01:17.5]} 25.
Ref1 {[%clk 0:01:37.3]} 25... Be6 {[%clk 0:01:17.8]} 26. Rxf8+ {[%clk
0:01:34.8]} 26... Rxf8 {[%clk 0:01:18.7]} 27. Rxf8+ {[%clk 0:01:34.8]} 27...
Kxf8 {[%clk 0:01:19.6]} 28. Ne2 {[%clk 0:01:21.6]} 28... Qg6 {[%clk 0:00:57.9]}
29. Nf4 {[%clk 0:00:43.7]} 29... Qb1+ {[%clk 0:00:52.1]} 30. Qg1 {[%clk
0:00:43.5]} 30... Qe4+ {[%clk 0:00:48.3]} 31. Qg2 {[%clk 0:00:43.3]} 31... Ke7
{[%clk 0:00:26.9]} 32. Qxe4 {[%clk 0:00:41.6]} 32... dxe4 {[%clk 0:00:27.4]} 33.
a3 {[%clk 0:00:39.5]} 33... g5 {[%clk 0:00:25.2]} 34. Ne2 {[%clk 0:00:38.1]}
34... Bc4 {[%clk 0:00:23.1]} 35. Nc3 {[%clk 0:00:37.5]} 35... e3 {[%clk
0:00:21.8]} 36. Kg2 {[%clk 0:00:29.4]} 36... g4 {[%clk 0:00:20.3]} 37. b4 {[%clk
0:00:12.4]} 37... Ke6 {[%clk 0:00:18.1]} 38. Kg1 {[%clk 0:00:11.3]} 38... b6
{[%clk 0:00:15.4]} 39. Kg2 {[%clk 0:00:09.3]} 39... h5 {[%clk 0:00:13]} 40. Kg1
{[%clk 0:00:08.4]} 40... c5 {[%clk 0:00:11.2]} 41. dxc5 {[%clk 0:00:08.3]} 41...
bxc5 {[%clk 0:00:10.2]} 42. bxc5 {[%clk 0:00:09.2]} 42... Kxe5 {[%clk
0:00:09.5]} 43. Kg2 {[%clk 0:00:07.9]} 43... Kd4 {[%clk 0:00:07.5]} 44. c6
{[%clk 0:00:07.7]} 44... Kxc3 {[%clk 0:00:07.6]} 45. c7 {[%clk 0:00:08.1]} 45...
Be6 {[%clk 0:00:07.4]} 46. Kf1 {[%clk 0:00:08.8]} 46... Kd2 {[%clk 0:00:07.8]}
47. Kg2 {[%clk 0:00:07.8]} 47... Bc8 {[%clk 0:00:08.7]} 0-1

[Event "*** Titled Tuesday Blitz"]
[Site "Chess.com"]
[Date "2020.11.24"]
[Round "3"]
[White "Chamal_Gedgafov"]
[Black "The_Machine04"]
[Result "0-1"]
[WhiteElo "2178"]
[BlackElo "2490"]
[TimeControl "180+1"]
[EndTime "10:45:19 PST"]
[Termination "The_Machine04 won on time"]

1. d4 {[%clk 0:03:00.9]} 1... d6 {[%clk 0:03:00]} 2. c4 {[%clk 0:02:59.5]} 2...
e5 {[%clk 0:02:59.9]} 3. d5 {[%clk 0:02:58.7]} 3... f5 {[%clk 0:02:59.7]} 4. Nc3
{[%clk 0:02:59.5]} 4... Nf6 {[%clk 0:02:59.9]} 5. e4 {[%clk 0:02:59.9]} 5...
fxe4 {[%clk 0:03:00.6]} 6. Bg5 {[%clk 0:02:59.3]} 6... Bf5 {[%clk 0:02:59.8]} 7.
Nge2 {[%clk 0:02:57.5]} 7... Be7 {[%clk 0:02:57]} 8. Ng3 {[%clk 0:02:56]} 8...
Bg6 {[%clk 0:02:57.4]} 9. Bxf6 {[%clk 0:02:56.1]} 9... gxf6 {[%clk 0:02:56.2]}
10. Ngxe4 {[%clk 0:02:56.6]} 10... f5 {[%clk 0:02:55.7]} 11. Ng3 {[%clk
0:02:55.3]} 11... f4 {[%clk 0:02:53]} 12. Nge4 {[%clk 0:02:54.6]} 12... Nd7
{[%clk 0:02:52.9]} 13. Bd3 {[%clk 0:02:54.2]} 13... Nf6 {[%clk 0:02:49.2]} 14.
Qe2 {[%clk 0:02:53.3]} 14... Qd7 {[%clk 0:02:46.7]} 15. h4 {[%clk 0:02:49.1]}
15... Rg8 {[%clk 0:02:25.4]} 16. O-O-O {[%clk 0:02:47.4]} 16... O-O-O {[%clk
0:02:24]} 17. g3 {[%clk 0:02:39.5]} 17... fxg3 {[%clk 0:02:16.4]} 18. fxg3
{[%clk 0:02:38]} 18... Qg4 {[%clk 0:02:03.8]} 19. Nxf6 {[%clk 0:02:27.8]} 19...
Qxe2 {[%clk 0:02:02.6]} 20. Nxe2 {[%clk 0:02:28.7]} 20... Bxf6 {[%clk
0:02:02.4]} 21. Bxg6 {[%clk 0:02:22.1]} 21... Rxg6 {[%clk 0:02:03.3]} 22. Rdf1
{[%clk 0:02:15.7]} 22... Bg7 {[%clk 0:01:54.5]} 23. Rf7 {[%clk 0:02:09]} 23...
Rg4 {[%clk 0:01:47.5]} 24. b3 {[%clk 0:02:03.4]} 24... a6 {[%clk 0:01:27.2]} 25.
Rhf1 {[%clk 0:02:01.4]} 25... b5 {[%clk 0:01:20.2]} 26. cxb5 {[%clk 0:01:53.4]}
26... axb5 {[%clk 0:01:21.1]} 27. Re7 {[%clk 0:01:28]} 27... Rd7 {[%clk
0:01:20.6]} 28. Re8+ {[%clk 0:01:25.5]} 28... Kb7 {[%clk 0:01:17.8]} 29. Rf3
{[%clk 0:01:17]} 29... e4 {[%clk 0:01:12.6]} 30. Rf5 {[%clk 0:01:00]} 30... Be5
{[%clk 0:01:08.9]} 31. Kc2 {[%clk 0:00:27.9]} 31... Rdg7 {[%clk 0:01:03.7]} 32.
Rexe5 {[%clk 0:00:19.2]} 32... dxe5 {[%clk 0:01:00.7]} 33. Rxe5 {[%clk
0:00:19.9]} 33... Rf7 {[%clk 0:00:57.9]} 34. Kd2 {[%clk 0:00:19.1]} 34... Rf3
{[%clk 0:00:56.1]} 35. Re7 {[%clk 0:00:16.2]} 35... Kb6 {[%clk 0:00:52.5]} 36.
Rxh7 {[%clk 0:00:15]} 36... Rd3+ {[%clk 0:00:50.9]} 37. Kc2 {[%clk 0:00:14.1]}
37... Rxd5 {[%clk 0:00:48.9]} 38. Re7 {[%clk 0:00:11.7]} 38... c6 {[%clk
0:00:44.8]} 39. a3 {[%clk 0:00:07.4]} 39... Rf5 {[%clk 0:00:24.5]} 40. Re8
{[%clk 0:00:03.5]} 40... Rf3 {[%clk 0:00:23.8]} 41. Kd2 {[%clk 0:00:02.7]} 41...
Rxb3 {[%clk 0:00:22.7]} 42. h5 {[%clk 0:00:02.8]} 42... Rxa3 {[%clk 0:00:19.7]}
43. h6 {[%clk 0:00:02.8]} 43... Ra7 {[%clk 0:00:16.4]} 44. Re6 {[%clk
0:00:01.1]} 44... Rh7 {[%clk 0:00:16.1]} 0-1

[Event "*** Titled Tuesday Blitz"]
[Site "Chess.com"]
[Date "2020.11.24"]
[Round "3"]
[White "vladislavkovalev"]
[Black "smshk35"]
[Result "0-1"]
[WhiteElo "2804"]
[BlackElo "2474"]
[TimeControl "180+1"]
[EndTime "10:45:22 PST"]
[Termination "smshk35 won by resignation"]

1. e4 {[%clk 0:03:00.9]} 1... c5 {[%clk 0:02:59.4]} 2. Be2 {[%clk 0:03:00.9]}
2... e5 {[%clk 0:02:56.2]} 3. d3 {[%clk 0:03:01.8]} 3... Nf6 {[%clk 0:02:53.1]}
4. f4 {[%clk 0:03:02.1]} 4... Nc6 {[%clk 0:02:50.8]} 5. Nf3 {[%clk 0:03:01.7]}
5... Bd6 {[%clk 0:02:45.2]} 6. f5 {[%clk 0:02:42.2]} 6... Bc7 {[%clk 0:02:37.8]}
7. c4 {[%clk 0:02:42.5]} 7... Nd4 {[%clk 0:02:34.9]} 8. Nc3 {[%clk 0:02:41]}
8... Ba5 {[%clk 0:02:35.1]} 9. O-O {[%clk 0:02:32]} 9... Bxc3 {[%clk 0:02:35]}
10. bxc3 {[%clk 0:02:32.5]} 10... Nxf3+ {[%clk 0:02:35.3]} 11. Bxf3 {[%clk
0:02:32.3]} 11... d6 {[%clk 0:02:25.8]} 12. g4 {[%clk 0:02:32.3]} 12... h6
{[%clk 0:02:24.7]} 13. h4 {[%clk 0:02:30.6]} 13... Nh7 {[%clk 0:02:13.6]} 14.
Qe1 {[%clk 0:02:31]} 14... Qe7 {[%clk 0:02:03.9]} 15. Qg3 {[%clk 0:02:25.5]}
15... g5 {[%clk 0:01:36.9]} 16. fxg6 {[%clk 0:02:21.2]} 16... fxg6 {[%clk
0:01:37.8]} 17. Bxh6 {[%clk 0:02:19.6]} 17... Be6 {[%clk 0:01:36.5]} 18. g5
{[%clk 0:02:11.5]} 18... O-O-O {[%clk 0:01:31.1]} 19. Rf2 {[%clk 0:02:10.5]}
19... Qd7 {[%clk 0:01:20]} 20. Raf1 {[%clk 0:02:09.2]} 20... Rhe8 {[%clk
0:01:17.3]} 21. Kg2 {[%clk 0:01:59.1]} 21... Re7 {[%clk 0:01:15.7]} 22. Bd1
{[%clk 0:01:56.4]} 22... a6 {[%clk 0:01:12.3]} 23. a4 {[%clk 0:01:54.7]} 23...
Rg8 {[%clk 0:01:06.7]} 24. Kh2 {[%clk 0:01:29.5]} 24... Rge8 {[%clk 0:00:55.1]}
25. Bf8 {[%clk 0:01:12.7]} 25... Nxf8 {[%clk 0:00:48.7]} 26. Rxf8 {[%clk
0:01:13.6]} 26... Rh7 {[%clk 0:00:41.8]} 27. Rxe8+ {[%clk 0:01:08.1]} 27... Qxe8
{[%clk 0:00:42.7]} 28. Rf6 {[%clk 0:01:03.7]} 28... Kb8 {[%clk 0:00:31.7]} 29.
a5 {[%clk 0:01:03.1]} 29... Rf7 {[%clk 0:00:16.3]} 30. Qf2 {[%clk 0:00:58.4]}
30... Rxf6 {[%clk 0:00:16]} 31. Qxf6 {[%clk 0:00:59.3]} 31... Qf7 {[%clk
0:00:15.6]} 32. Qxf7 {[%clk 0:00:30.1]} 32... Bxf7 {[%clk 0:00:16.5]} 33. Kg3
{[%clk 0:00:30.9]} 33... b6 {[%clk 0:00:16.1]} 34. h5 {[%clk 0:00:31.3]} 34...
gxh5 {[%clk 0:00:15.2]} 35. Kh4 {[%clk 0:00:31.7]} 35... bxa5 {[%clk 0:00:14.7]}
36. Bxh5 {[%clk 0:00:32.4]} 36... Be6 {[%clk 0:00:13.9]} 37. Bd1 {[%clk
0:00:29]} 37... Bf7 {[%clk 0:00:12.2]} 38. Kg4 {[%clk 0:00:29.2]} 38... Bg6
{[%clk 0:00:12.4]} 39. Ba4 {[%clk 0:00:27.6]} 39... Kc7 {[%clk 0:00:12.3]} 40.
Kf3 {[%clk 0:00:24.2]} 40... Kd8 {[%clk 0:00:12.3]} 41. Ke2 {[%clk 0:00:20.7]}
41... Be8 {[%clk 0:00:11.1]} 42. Bxe8 {[%clk 0:00:07.3]} 42... Kxe8 {[%clk
0:00:12]} 43. Kd2 {[%clk 0:00:08.2]} 43... Kf7 {[%clk 0:00:12.3]} 44. Kc2 {[%clk
0:00:09.1]} 44... Kg6 {[%clk 0:00:12.8]} 45. Kb3 {[%clk 0:00:10]} 45... Kxg5
{[%clk 0:00:13.4]} 46. Ka4 {[%clk 0:00:10.9]} 46... Kf4 {[%clk 0:00:13.8]} 47.
Kxa5 {[%clk 0:00:11.8]} 47... Ke3 {[%clk 0:00:13.5]} 48. Kxa6 {[%clk 0:00:12.7]}
48... Kxd3 {[%clk 0:00:13.9]} 49. Kb5 {[%clk 0:00:13.4]} 49... Kxe4 {[%clk
0:00:13.9]} 50. Kc6 {[%clk 0:00:14.3]} 50... Kd3 {[%clk 0:00:13.1]} 51. Kxd6
{[%clk 0:00:14.8]} 51... Kxc4 {[%clk 0:00:11.7]} 0-1

[Event "*** Titled Tuesday Blitz"]
[Site "Chess.com"]
[Date "2020.11.24"]
[Round "3"]
[White "esskeettit"]
[Black "HrvojeZagreb"]
[Result "0-1"]
[WhiteElo "2489"]
[BlackElo "2264"]
[TimeControl "180+1"]
[EndTime "10:45:23 PST"]
[Termination "HrvojeZagreb won by checkmate"]

1. d4 {[%clk 0:03:00.9]} 1... e6 {[%clk 0:02:59.2]} 2. c4 {[%clk 0:03:00.6]}
2... f5 {[%clk 0:02:59]} 3. g3 {[%clk 0:02:59.5]} 3... Nf6 {[%clk 0:02:59.1]} 4.
Bg2 {[%clk 0:02:59.4]} 4... Be7 {[%clk 0:02:59.2]} 5. Nh3 {[%clk 0:02:56.7]}
5... O-O {[%clk 0:02:58.4]} 6. Nf4 {[%clk 0:02:56.8]} 6... d6 {[%clk 0:02:57.1]}
7. O-O {[%clk 0:02:51.3]} 7... c6 {[%clk 0:02:57]} 8. Nc3 {[%clk 0:02:31]} 8...
e5 {[%clk 0:02:49.4]} 9. dxe5 {[%clk 0:02:30.2]} 9... dxe5 {[%clk 0:02:49.9]}
10. Nd3 {[%clk 0:02:27.4]} 10... Qc7 {[%clk 0:02:47.4]} 11. Qc2 {[%clk 0:02:21]}
11... Na6 {[%clk 0:02:41.2]} 12. a3 {[%clk 0:02:18.7]} 12... Nc5 {[%clk
0:02:40.1]} 13. b4 {[%clk 0:02:16.5]} 13... Ne6 {[%clk 0:02:33.2]} 14. e3 {[%clk
0:02:10.6]} 14... e4 {[%clk 0:02:19.9]} 15. Nf4 {[%clk 0:02:09.2]} 15... Nxf4
{[%clk 0:02:18.7]} 16. exf4 {[%clk 0:02:09.8]} 16... Be6 {[%clk 0:02:10.3]} 17.
Ne2 {[%clk 0:02:00.2]} 17... Rad8 {[%clk 0:01:51.5]} 18. Bb2 {[%clk 0:01:59.2]}
18... Rd3 {[%clk 0:01:30.9]} 19. Rfd1 {[%clk 0:01:52.4]} 19... Rfd8 {[%clk
0:01:30]} 20. Nd4 {[%clk 0:01:52.2]} 20... Bc8 {[%clk 0:01:29.2]} 21. Rxd3
{[%clk 0:01:28.1]} 21... exd3 {[%clk 0:01:29.8]} 22. Qxd3 {[%clk 0:01:29]} 22...
c5 {[%clk 0:01:30.2]} 23. bxc5 {[%clk 0:01:29.9]} 23... Bxc5 {[%clk 0:01:29.9]}
24. Rd1 {[%clk 0:01:25.7]} 24... Qb6 {[%clk 0:01:18.9]} 25. Bc3 {[%clk
0:01:01.8]} 25... Bxa3 {[%clk 0:01:15.7]} 26. Rb1 {[%clk 0:00:43.9]} 26... Qc7
{[%clk 0:01:01.4]} 27. Qe2 {[%clk 0:00:34]} 27... Bc5 {[%clk 0:00:58.5]} 28. Nb5
{[%clk 0:00:23.7]} 28... Qb6 {[%clk 0:00:50.3]} 29. Rf1 {[%clk 0:00:17.4]} 29...
a6 {[%clk 0:00:48.1]} 30. Ra1 {[%clk 0:00:10.9]} 30... axb5 {[%clk 0:00:45]} 31.
Ba5 {[%clk 0:00:10.9]} 31... Qa7 {[%clk 0:00:33.5]} 32. Bxd8 {[%clk 0:00:09.7]}
32... Qxa1+ {[%clk 0:00:33.1]} 33. Bf1 {[%clk 0:00:10.6]} 33... Ne4 {[%clk
0:00:31.4]} 34. Qh5 {[%clk 0:00:09.9]} 34... Bxf2+ {[%clk 0:00:28.5]} 35. Kg2
{[%clk 0:00:09.9]} 35... g6 {[%clk 0:00:27.3]} 36. Qh4 {[%clk 0:00:09]} 36...
Qb2 {[%clk 0:00:16.1]} 37. Kh3 {[%clk 0:00:06.3]} 37... Bxg3 {[%clk 0:00:11.8]}
38. hxg3 {[%clk 0:00:04.8]} 38... Nf2+ {[%clk 0:00:10.9]} 39. Kg2 {[%clk
0:00:04.4]} 39... Ng4+ {[%clk 0:00:08.5]} 40. Kh1 {[%clk 0:00:05.3]} 40... Qf2
{[%clk 0:00:04.8]} 41. Qh3 {[%clk 0:00:02.7]} 41... Bd7 {[%clk 0:00:02.7]} 42.
Bg2 {[%clk 0:00:01.5]} 42... Qe1+ {[%clk 0:00:02.1]} 43. Bf1 {[%clk 0:00:02]}
43... Bc6+ {[%clk 0:00:02.5]} 44. Kg1 {[%clk 0:00:02.2]} 44... Qf2# {[%clk
0:00:02.7]} 0-1

[Event "*** Titled Tuesday Blitz"]
[Site "Chess.com"]
[Date "2020.11.24"]
[Round "3"]
[White "03revilo"]
[Black "Gudmundur_Kjartansson"]
[Result "0-1"]
[WhiteElo "2371"]
[BlackElo "2554"]
[TimeControl "180+1"]
[EndTime "10:45:24 PST"]
[Termination "Gudmundur_Kjartansson won by resignation"]

1. e4 {[%clk 0:03:00.9]} 1... c5 {[%clk 0:02:59.9]} 2. Nf3 {[%clk 0:03:00.6]}
2... d6 {[%clk 0:02:59.9]} 3. d4 {[%clk 0:03:01.1]} 3... cxd4 {[%clk 0:03:00.5]}
4. Nxd4 {[%clk 0:03:02]} 4... Nf6 {[%clk 0:03:01.1]} 5. Nc3 {[%clk 0:03:02.5]}
5... a6 {[%clk 0:03:01.8]} 6. Be3 {[%clk 0:02:59.3]} 6... e5 {[%clk 0:03:01.7]}
7. Nf3 {[%clk 0:02:59.2]} 7... Be7 {[%clk 0:03:00.3]} 8. Bc4 {[%clk 0:02:58.9]}
8... O-O {[%clk 0:02:59.7]} 9. O-O {[%clk 0:02:59.1]} 9... Be6 {[%clk
0:02:57.4]} 10. Bb3 {[%clk 0:02:58.9]} 10... Nc6 {[%clk 0:02:53.1]} 11. Bg5
{[%clk 0:02:58.7]} 11... Na5 {[%clk 0:02:48.9]} 12. Bxf6 {[%clk 0:02:56]} 12...
Bxf6 {[%clk 0:02:48]} 13. Bd5 {[%clk 0:02:56.3]} 13... Qc7 {[%clk 0:02:41.5]}
14. Qe2 {[%clk 0:02:50.3]} 14... Rac8 {[%clk 0:02:35.3]} 15. Rfd1 {[%clk
0:02:38.3]} 15... b5 {[%clk 0:02:33]} 16. a3 {[%clk 0:01:49.6]} 16... Rfd8
{[%clk 0:02:25.7]} 17. Qd3 {[%clk 0:01:37.4]} 17... Nc4 {[%clk 0:02:22.5]} 18.
Bxc4 {[%clk 0:01:27.2]} 18... Bxc4 {[%clk 0:01:57.7]} 19. Qe3 {[%clk 0:01:20.8]}
19... h6 {[%clk 0:01:48.7]} 20. Rd2 {[%clk 0:01:19.5]} 20... a5 {[%clk
0:01:39.9]} 21. Rad1 {[%clk 0:01:19.1]} 21... b4 {[%clk 0:01:39]} 22. axb4
{[%clk 0:01:20]} 22... axb4 {[%clk 0:01:38.9]} 23. Ne2 {[%clk 0:00:48.4]} 23...
Qc6 {[%clk 0:01:00.1]} 24. Ng3 {[%clk 0:00:46.2]} 24... d5 {[%clk 0:00:54.8]}
25. exd5 {[%clk 0:00:40.5]} 25... Rxd5 {[%clk 0:00:53.3]} 26. Nh5 {[%clk
0:00:16]} 26... Rxd2 {[%clk 0:00:45.3]} 27. Rxd2 {[%clk 0:00:16.9]} 27... e4
{[%clk 0:00:37.4]} 28. Nxf6+ {[%clk 0:00:15.4]} 28... Qxf6 {[%clk 0:00:37.4]}
29. Qxe4 {[%clk 0:00:15.5]} 29... Qxb2 {[%clk 0:00:37.2]} 30. h3 {[%clk
0:00:09.4]} 30... Be6 {[%clk 0:00:32]} 31. Kh2 {[%clk 0:00:04.7]} 31... Qc3
{[%clk 0:00:19.2]} 32. Re2 {[%clk 0:00:04.2]} 32... Rc4 {[%clk 0:00:12.5]} 33.
Qe5 {[%clk 0:00:02]} 33... Qxe5+ {[%clk 0:00:11.1]} 34. Nxe5 {[%clk 0:00:02.9]}
34... Rc3 {[%clk 0:00:10.7]} 35. g4 {[%clk 0:00:03.2]} 35... Kf8 {[%clk
0:00:05.1]} 36. Kg2 {[%clk 0:00:03.6]} 36... f6 {[%clk 0:00:03.5]} 37. f3 {[%clk
0:00:03.5]} 37... fxe5 {[%clk 0:00:03.5]} 38. Rxe5 {[%clk 0:00:04.2]} 38...
Rxc2+ {[%clk 0:00:03.8]} 39. Kg3 {[%clk 0:00:04.1]} 39... Kf7 {[%clk 0:00:02.4]}
40. Rb5 {[%clk 0:00:04.4]} 40... Rb2 {[%clk 0:00:02.4]} 41. Rb7+ {[%clk
0:00:05.3]} 41... Kf6 {[%clk 0:00:02.2]} 42. f4 {[%clk 0:00:06.2]} 42... Bd5
{[%clk 0:00:02.1]} 43. f5 {[%clk 0:00:07.1]} 43... Bxb7 {[%clk 0:00:01.4]} 44.
Kf4 {[%clk 0:00:08]} 44... Rf2+ {[%clk 0:00:01.6]} 45. Ke3 {[%clk 0:00:08.2]}
45... Rf3+ {[%clk 0:00:02.2]} 46. Ke2 {[%clk 0:00:07.6]} 46... Rxh3 {[%clk
0:00:03.1]} 47. g5+ {[%clk 0:00:08.1]} 47... Kxg5 {[%clk 0:00:03.7]} 48. f6
{[%clk 0:00:09]} 48... Kxf6 {[%clk 0:00:04.4]} 0-1

[Event "*** Titled Tuesday Blitz"]
[Site "Chess.com"]
[Date "2020.11.24"]
[Round "3"]
[White "halldorgretar"]
[Black "zmeeed67"]
[Result "0-1"]
[WhiteElo "2162"]
[BlackElo "2410"]
[TimeControl "180+1"]
[EndTime "10:45:25 PST"]
[Termination "zmeeed67 won on time"]

1. d4 {[%clk 0:03:00.9]} 1... Nc6 {[%clk 0:03:00.2]} 2. Nf3 {[%clk 0:02:55.2]}
2... d6 {[%clk 0:03:00.2]} 3. g3 {[%clk 0:02:50.2]} 3... Nf6 {[%clk 0:03:00.1]}
4. Bg2 {[%clk 0:02:48.3]} 4... Bg4 {[%clk 0:02:59.7]} 5. O-O {[%clk 0:02:47.1]}
5... e5 {[%clk 0:02:59.3]} 6. dxe5 {[%clk 0:02:36.3]} 6... dxe5 {[%clk
0:02:58.9]} 7. Nbd2 {[%clk 0:02:27.5]} 7... Qc8 {[%clk 0:02:55.7]} 8. Nc4 {[%clk
0:02:24.4]} 8... Qe6 {[%clk 0:02:44.9]} 9. b3 {[%clk 0:02:03.6]} 9... Rd8 {[%clk
0:02:39]} 10. Qe1 {[%clk 0:02:02.6]} 10... h6 {[%clk 0:02:38.3]} 11. Bb2 {[%clk
0:02:01.3]} 11... Nd7 {[%clk 0:02:34.1]} 12. Rd1 {[%clk 0:01:55.7]} 12... Bb4
{[%clk 0:02:24.9]} 13. c3 {[%clk 0:01:51.8]} 13... Be7 {[%clk 0:02:23.6]} 14.
Qd2 {[%clk 0:01:39]} 14... Nb6 {[%clk 0:02:11.4]} 15. Qe3 {[%clk 0:01:15.5]}
15... Nxc4 {[%clk 0:02:02.6]} 16. Rxd8+ {[%clk 0:01:10]} 16... Bxd8 {[%clk
0:02:01.3]} 17. bxc4 {[%clk 0:01:08.7]} 17... O-O {[%clk 0:02:00.5]} 18. Nd2
{[%clk 0:00:59.2]} 18... Bg5 {[%clk 0:01:55.5]} 19. Bd5 {[%clk 0:00:21.9]} 19...
Bxe3 {[%clk 0:01:26.5]} 20. Bxe6 {[%clk 0:00:21.4]} 20... Bxe6 {[%clk
0:00:57.5]} 21. fxe3 {[%clk 0:00:21.3]} 21... Na5 {[%clk 0:00:57.9]} 22. c5
{[%clk 0:00:18.7]} 22... Rd8 {[%clk 0:00:56.6]} 23. Nf3 {[%clk 0:00:18]} 23...
f6 {[%clk 0:00:54.3]} 24. Kf2 {[%clk 0:00:14.8]} 24... Nc4 {[%clk 0:00:41.3]}
25. Bc1 {[%clk 0:00:13.9]} 25... Rd5 {[%clk 0:00:40.1]} 26. e4 {[%clk
0:00:13.4]} 26... Rxc5 {[%clk 0:00:39.6]} 27. Rd1 {[%clk 0:00:13.4]} 27... Ra5
{[%clk 0:00:38.3]} 28. Rd8+ {[%clk 0:00:12.8]} 28... Kf7 {[%clk 0:00:37.8]} 29.
Rb8 {[%clk 0:00:11.7]} 29... b6 {[%clk 0:00:30.6]} 30. Rb7 {[%clk 0:00:11.7]}
30... Rxa2 {[%clk 0:00:26.3]} 31. Rxc7+ {[%clk 0:00:11.3]} 31... Kg8 {[%clk
0:00:26.4]} 32. Nh4 {[%clk 0:00:10.9]} 32... Kh7 {[%clk 0:00:25.6]} 33. Nf5
{[%clk 0:00:09.8]} 33... Bxf5 {[%clk 0:00:23.9]} 34. exf5 {[%clk 0:00:09.5]}
34... Nd6 {[%clk 0:00:20.4]} 35. g4 {[%clk 0:00:06.8]} 35... Rc2 {[%clk
0:00:19.6]} 36. Be3 {[%clk 0:00:05.4]} 36... Ne4+ {[%clk 0:00:19.3]} 37. Kf3
{[%clk 0:00:04.8]} 37... Rxc3 {[%clk 0:00:19.1]} 38. Rxa7 {[%clk 0:00:04.4]}
38... Ng5+ {[%clk 0:00:16.9]} 39. Kf2 {[%clk 0:00:03.7]} 39... b5 {[%clk
0:00:16.6]} 40. h4 {[%clk 0:00:03]} 40... Ne4+ {[%clk 0:00:15.8]} 41. Kf3 {[%clk
0:00:03.1]} 41... Nd2+ {[%clk 0:00:15]} 42. Kf2 {[%clk 0:00:03.4]} 42... Nc4
{[%clk 0:00:15.4]} 43. Bc5 {[%clk 0:00:02.1]} 43... Rh3 {[%clk 0:00:12.5]} 44.
Bf8 {[%clk 0:00:01.1]} 44... Rxh4 {[%clk 0:00:09.9]} 0-1

[Event "*** Titled Tuesday Blitz"]
[Site "Chess.com"]
[Date "2020.11.24"]
[Round "3"]
[White "Szparu"]
[Black "GMJustin"]
[Result "0-1"]
[WhiteElo "2492"]
[BlackElo "2278"]
[TimeControl "180+1"]
[EndTime "10:45:28 PST"]
[Termination "GMJustin won by resignation"]

1. e4 {[%clk 0:03:00.9]} 1... e5 {[%clk 0:02:51.9]} 2. Nf3 {[%clk 0:02:26.1]}
2... Nc6 {[%clk 0:02:51.5]} 3. Bb5 {[%clk 0:02:26.8]} 3... a6 {[%clk 0:02:51.1]}
4. Ba4 {[%clk 0:02:27.2]} 4... Nf6 {[%clk 0:02:49.4]} 5. O-O {[%clk 0:02:26.6]}
5... Be7 {[%clk 0:02:40.1]} 6. Re1 {[%clk 0:02:26.1]} 6... b5 {[%clk 0:02:39.5]}
7. Bb3 {[%clk 0:02:26.1]} 7... d6 {[%clk 0:02:37.7]} 8. c3 {[%clk 0:02:26.2]}
8... O-O {[%clk 0:02:36.7]} 9. d4 {[%clk 0:02:24.9]} 9... Bg4 {[%clk 0:02:34.5]}
10. Be3 {[%clk 0:02:21.7]} 10... Bh5 {[%clk 0:02:17.2]} 11. h3 {[%clk
0:02:06.8]} 11... Na5 {[%clk 0:01:47.2]} 12. Bc2 {[%clk 0:02:05.1]} 12... Nc4
{[%clk 0:01:42.3]} 13. Bc1 {[%clk 0:02:01.6]} 13... exd4 {[%clk 0:01:16.1]} 14.
cxd4 {[%clk 0:02:01.1]} 14... c5 {[%clk 0:01:16.1]} 15. b3 {[%clk 0:01:58.4]}
15... Nb6 {[%clk 0:01:13.6]} 16. Bb2 {[%clk 0:01:51]} 16... c4 {[%clk
0:00:56.2]} 17. Nbd2 {[%clk 0:01:30.3]} 17... Rc8 {[%clk 0:00:48]} 18. Re3
{[%clk 0:01:29.6]} 18... d5 {[%clk 0:00:41.1]} 19. e5 {[%clk 0:01:22.6]} 19...
Ne8 {[%clk 0:00:39.2]} 20. Bf5 {[%clk 0:00:57]} 20... Rc6 {[%clk 0:00:37.9]} 21.
Rc1 {[%clk 0:00:52.1]} 21... Nc7 {[%clk 0:00:35.6]} 22. g4 {[%clk 0:00:31.2]}
22... Bg6 {[%clk 0:00:35.2]} 23. Nf1 {[%clk 0:00:31.4]} 23... Ne6 {[%clk
0:00:28.1]} 24. Ng3 {[%clk 0:00:31.3]} 24... Ng5 {[%clk 0:00:26]} 25. Kg2 {[%clk
0:00:29.2]} 25... b4 {[%clk 0:00:21.3]} 26. Rc2 {[%clk 0:00:27.6]} 26... Ne6
{[%clk 0:00:12.4]} 27. Bxg6 {[%clk 0:00:20.4]} 27... fxg6 {[%clk 0:00:11.4]} 28.
Ne2 {[%clk 0:00:18.8]} 28... c3 {[%clk 0:00:08.8]} 29. Bc1 {[%clk 0:00:19]}
29... a5 {[%clk 0:00:08.7]} 30. Qd3 {[%clk 0:00:19.1]} 30... a4 {[%clk
0:00:07.7]} 31. Qb5 {[%clk 0:00:19.3]} 31... Qc8 {[%clk 0:00:06.8]} 32. Ne1
{[%clk 0:00:18.3]} 32... axb3 {[%clk 0:00:06.4]} 33. axb3 {[%clk 0:00:18.2]}
33... Bg5 {[%clk 0:00:05.5]} 34. Nd3 {[%clk 0:00:17.8]} 34... Bxe3 {[%clk
0:00:05.2]} 35. Bxe3 {[%clk 0:00:18.7]} 35... Nd7 {[%clk 0:00:05.1]} 36. Nxb4
{[%clk 0:00:18.5]} 36... Rb6 {[%clk 0:00:04.2]} 37. Qa5 {[%clk 0:00:19]} 37...
Rb7 {[%clk 0:00:03.8]} 38. Nxd5 {[%clk 0:00:19.3]} 38... Kh8 {[%clk 0:00:03]}
39. Rxc3 {[%clk 0:00:19.6]} 39... Qb8 {[%clk 0:00:02.9]} 40. b4 {[%clk
0:00:19.2]} 40... Rb5 {[%clk 0:00:02.9]} 41. Qa6 {[%clk 0:00:18]} 41... Rxd5
{[%clk 0:00:02.7]} 42. Qxe6 {[%clk 0:00:18.4]} 42... Qb7 {[%clk 0:00:02.7]} 43.
Rc6 {[%clk 0:00:18.3]} 43... Rb5 {[%clk 0:00:01.7]} 44. f3 {[%clk 0:00:16.7]}
44... Rxb4 {[%clk 0:00:01.8]} 45. d5 {[%clk 0:00:16.7]} 45... Rb2 {[%clk
0:00:01.8]} 46. Kf2 {[%clk 0:00:14.6]} 46... Qb5 {[%clk 0:00:02]} 47. Rc2 {[%clk
0:00:13.2]} 47... Rxc2 {[%clk 0:00:01.6]} 0-1